bitfinex/quotes_BTCUSD_20241110
["timestamp","ask_amount","ask_price","bid_price","bid_amount"]
[1731268147434,0.05165321,79555.0,79530.0,0.0339596]
[1731268147624,0.05165321,79555.0,79537.0,0.18868755]
[1731268147983,0.5,79559.0,79537.0,0.18868755]
[1731268148185,0.08388,79570.0,79550.0,0.18868755]
[1731268148186,0.00168,79570.0,79550.0,0.18868755]
[1731268148390,0.251354,79569.0,79551.0,0.02029378]
[1731268148568,0.251354,79569.0,79538.0,0.18868755]
[1731268148569,0.125677,79569.0,79552.0,0.02029378]
[1731268148777,0.109657,79557.0,79555.0,0.18868755]
[1731268148969,0.125695,79558.0,79555.0,0.18868755]
[1731268149213,0.05287396,79574.0,79552.0,0.04119191]
[1731268149214,0.5,79569.0,79552.0,0.02029378]
[1731268149391,0.05287396,79574.0,79552.0,0.02029378]
[1731268149696,0.125691,79560.0,79556.0,0.18868755]
[1731268149918,0.05287396,79574.0,79556.0,0.18868755]
[1731268150134,0.30421296,79574.0,79573.0,0.18868755]
[1731268150357,0.125671,79573.0,79557.0,0.15943456]
[1731268150650,0.251308,79584.0,79565.0,0.125682]
[1731268150872,0.125658,79581.0,79568.0,0.125677]
[1731268151074,0.18868755,79587.0,79569.0,0.12594221]
[1731268151265,0.125648,79588.0,79578.0,0.125661]
[1731268151418,0.05442497,79597.0,79569.0,0.12594221]
[1731268151419,0.05442497,79597.0,79579.0,0.12594221]
[1731268151621,0.376902,79596.0,79579.0,0.12594221]
[1731268151896,0.44011455,79610.0,79565.0,0.18868755]
[1731268151897,0.005,79602.0,79580.0,0.20128177]
[1731268152039,0.251253,79601.0,79580.0,0.20128177]
[1731268152249,8e-05,79609.0,79588.0,0.18868755]
[1731268152455,8e-05,79609.0,79589.0,0.12594221]
[1731268152905,8e-05,79609.0,79596.0,0.18868755]
[1731268153120,0.51811662,79621.0,79596.0,0.20858163]
[1731268153327,0.2512,79618.0,79597.0,0.37720721]
[1731268153538,0.0878,79633.0,79605.0,0.18868755]
[1731268153762,0.251168,79628.0,79606.0,0.12594221]
[1731268153974,0.1224562,79635.0,79622.0,0.18868755]
[1731268154202,0.01311266,79642.0,79613.0,0.18868755]
[1731268154422,0.0878,79651.0,79613.0,0.18780568]
[1731268154423,0.18868755,79647.0,79613.0,0.18780568]
[1731268154634,0.251104,79648.0,79621.0,0.18868755]
[1731268154845,0.12558,79631.0,79622.0,0.20755631]
[1731268155052,0.251141,79637.0,79623.0,0.18868755]
[1731268155280,0.1,79637.0,79613.0,0.18780568]
[1731268155482,0.125593,79622.0,79621.0,0.18868755]
[1731268155689,0.33437207,79628.0,79621.0,0.18868755]
[1731268155901,0.5,79634.0,79605.0,0.18780536]
[1731268155902,0.20562072,79634.0,79609.0,0.251227]
[1731268156107,0.20562072,79634.0,79605.0,0.18780536]
[1731268156108,0.000711,79650.0,79614.0,0.19368755]
[1731268156324,0.000711,79650.0,79616.0,0.251205]
[1731268156532,0.000712,79664.0,79614.0,0.19368755]
[1731268156533,0.04136108,79659.0,79622.0,0.005]
[1731268156754,0.18868755,79657.0,79628.0,0.18868755]
[1731268156968,0.33437207,79667.0,79630.0,0.12594221]
[1731268157181,0.25106,79662.0,79644.0,0.18868755]
[1731268157415,0.125538,79658.0,79645.0,0.25149721]
[1731268157621,0.125546,79652.0,79646.0,0.23270603]
[1731268157827,0.125546,79652.0,79636.0,0.43982655]
[1731268157828,0.18868755,79672.0,79636.0,0.18868755]
[1731268158040,0.125542,79654.0,79644.0,0.18868755]
[1731268158290,0.5458,79673.0,79645.0,0.12594221]
[1731268158501,0.125537,79658.0,79646.0,0.05657488]
[1731268158718,0.125537,79658.0,79652.0,0.18868755]
[1731268158938,0.251023,79674.0,79652.0,0.18868755]
[1731268159154,0.251023,79674.0,79652.0,0.31423255]
[1731268159369,0.5,79676.0,79653.0,0.20368159]
[1731268159579,0.5,79676.0,79661.0,0.18868755]
[1731268159807,0.5,79676.0,79653.0,0.3296238]
[1731268159808,0.1,79675.0,79653.0,0.3296238]
[1731268160014,0.1,79675.0,79662.0,0.18868755]
[1731268160232,0.125528,79663.0,79662.0,0.20755631]
[1731268160442,0.1,79671.0,79662.0,0.20755631]
[1731268160673,0.35168755,79687.0,79653.0,0.3296238]
[1731268160877,0.5,79685.0,79661.0,0.18868755]
[1731268161090,0.250994,79683.0,79661.0,0.18868755]
[1731268161331,0.5,79685.0,79661.0,0.18868755]
[1731268161332,0.125514,79673.0,79664.0,0.125526]
[1731268161548,0.5,79685.0,79662.0,0.12594221]
[1731268162033,0.5,79685.0,79644.0,0.18868755]
[1731268162034,0.33437207,79670.0,79644.0,0.18868755]
[1731268162256,0.225557,79645.0,79644.0,0.18868755]
[1731268162475,0.125569,79637.0,79636.0,0.13883655]
[1731268163128,0.1,79644.0,79628.0,0.18868755]
[1731268163358,0.251102,79649.0,79637.0,0.125569]
[1731268165806,0.00168,79670.0,79657.0,0.18868755]
[1731268166066,0.00168,79670.0,79650.0,0.12594221]
[1731268166067,0.33605207,79670.0,79650.0,0.12594221]
[1731268166283,0.33605207,79670.0,79655.0,0.18868755]
[1731268166284,0.00168,79670.0,79655.0,0.18868755]
[1731268166719,0.00168,79670.0,79655.0,0.22015053]
[1731268166924,0.00168,79670.0,79666.0,0.18868755]
[1731268167131,0.00168,79670.0,79655.0,0.31462976]
[1731268167132,0.00168,79670.0,79669.0,0.005]
[1731268167375,0.00168,79670.0,79664.0,0.12594221]
[1731268168015,0.00168,79670.0,79665.0,0.12594221]
[1731268168184,0.00168,79670.0,79665.0,0.25146721]
[1731268168411,0.00168,79670.0,79665.0,0.12594221]
[1731268168728,0.251038,79669.0,79653.0,0.31423055]
[1731268168973,0.00168,79670.0,79653.0,0.31423055]
[1731268168974,0.125532,79661.0,79653.0,0.31462976]
[1731268169179,0.125542,79654.0,79653.0,0.18868755]
[1731268169444,0.00168,79670.0,79638.0,0.125566]
[1731268169445,0.125555,79647.0,79638.0,0.125566]
[1731268169657,0.125557,79645.0,79628.0,0.18868755]
[1731268169920,0.125561,79643.0,79637.0,0.18868755]
[1731268170107,0.33437207,79652.0,79628.0,0.18868755]
[1731268170328,0.35107,79659.0,79629.0,0.18868755]
[1731268170329,0.1,79637.0,79629.0,0.18868755]
[1731268170548,0.12558,79630.0,79629.0,0.18868755]
[1731268170997,0.125583,79629.0,79620.0,0.125596]
[1731268171208,0.125583,79629.0,79624.0,0.18868755]
[1731268171414,0.125583,79629.0,79622.0,0.31427955]
[1731268171618,0.33437207,79640.0,79622.0,0.31427955]
[1731268171619,0.125562,79642.0,79623.0,0.12594221]
[1731268171837,0.18868755,79638.0,79623.0,0.12594221]
[1731268172043,0.12556,79643.0,79624.0,0.18868755]
[1731268172255,0.18868755,79646.0,79624.0,0.18868755]
[1731268172256,0.125567,79639.0,79631.0,0.125578]
[1731268172494,0.250984,79687.0,79643.0,0.125559]
[1731268172495,0.251084,79655.0,79643.0,0.125559]
[1731268172706,0.251084,79655.0,79632.0,0.12594221]
[1731268172707,0.18868755,79648.0,79638.0,0.125566]
[1731268172908,0.251095,79651.0,79638.0,0.25150821]
[1731268173116,0.251095,79651.0,79626.0,0.0773]
[1731268173117,0.18868755,79648.0,79627.0,0.251171]
[1731268173353,0.251085,79654.0,79632.0,0.18868755]
[1731268173354,0.523,79654.0,79632.0,0.18868755]
[1731268173564,0.523,79654.0,79633.0,0.18868755]
[1731268173565,0.1,79643.0,79633.0,0.18868755]
[1731268173795,0.125574,79634.0,79633.0,0.18868755]
[1731268174217,0.251143,79636.0,79625.0,0.12594221]
[1731268174218,0.12558,79631.0,79625.0,0.12594221]
[1731268174440,0.1,79642.0,79625.0,0.18868755]
[1731268174659,0.1,79642.0,79616.0,0.0472]
[1731268174660,0.1,79642.0,79632.0,0.18868755]
[1731268174877,0.1,79642.0,79632.0,0.12594221]
[1731268175090,0.1,79642.0,79621.0,0.18868755]
[1731268175091,0.18868755,79656.0,79633.0,0.33349852]
[1731268175312,0.125542,79655.0,79635.0,0.251145]
[1731268175527,0.5,79665.0,79634.0,0.005]
[1731268175528,0.251052,79665.0,79640.0,0.005]
[1731268175748,0.18868755,79656.0,79654.0,0.125542]
[1731268175988,0.251052,79665.0,79641.0,0.14614479]
[1731268175989,0.251052,79665.0,79645.0,0.251114]
[1731268176204,0.33437207,79676.0,79651.0,0.125546]
[1731268176205,0.251057,79663.0,79651.0,0.125546]
[1731268176437,0.33437207,79676.0,79646.0,0.33487269]
[1731268176438,0.33437207,79676.0,79652.0,0.12594221]
[1731268176666,0.33437207,79676.0,79640.0,0.005]
[1731268176667,0.00168,79645.0,79644.0,0.125558]
[1731268176890,0.00168,79645.0,79644.0,0.15079923]
[1731268177103,0.00168,79645.0,79644.0,0.15579923]
[1731268177337,0.00168,79645.0,79644.0,0.27057141]
[1731268177573,0.00168,79645.0,79644.0,0.38145173]
[1731268177812,0.00168,79645.0,79644.0,0.50739394]
[1731268178012,0.00168,79645.0,79644.0,0.49239394]
[1731268178222,0.00168,79645.0,79644.0,0.41124144]
[1731268178663,0.00168,79670.0,79644.0,0.41124144]
[1731268178664,0.19036755,79670.0,79669.0,0.135519]
[1731268178888,0.19036755,79670.0,79669.0,0.17834774]
[1731268179104,0.00168,79670.0,79669.0,0.19334774]
[1731268179319,0.00168,79670.0,79669.0,0.23778671]
[1731268179537,0.00168,79670.0,79669.0,0.27034238]
[1731268179744,0.00168,79670.0,79669.0,0.23778671]
[1731268179970,0.00168,79670.0,79669.0,0.36372892]
[1731268182199,0.00168,79670.0,79669.0,0.36371648]
[1731268182851,0.00168,79670.0,79669.0,0.31927751]
[1731268186126,0.18868755,79693.0,79687.0,0.12549]
[1731268186272,0.18868755,79693.0,79688.0,0.17875851]
[1731268186485,0.125478,79695.0,79689.0,0.0528163]
[1731268186687,0.125482,79693.0,79690.0,0.17875851]
[1731268186895,0.250948,79698.0,79691.0,0.0528163]
[1731268187069,0.25095,79697.0,79692.0,0.0528163]
[1731268187269,0.25095,79697.0,79691.0,0.12594221]
[1731268187270,0.127161,79694.0,79693.0,0.0528163]
[1731268188324,0.127161,79694.0,79693.0,0.14625603]
[1731268188531,0.127161,79694.0,79693.0,0.14056781]
[1731268188769,0.001682,79694.0,79693.0,0.14056781]
[1731268189390,0.001682,79694.0,79693.0,0.1933325]
[1731268190018,0.127161,79694.0,79693.0,0.05276469]
[1731268190456,0.126161,79694.0,79693.0,0.02029397]
[1731268190883,0.226161,79694.0,79693.0,0.02029397]
[1731268191097,0.226161,79694.0,79677.0,0.18868755]
[1731268191098,0.1,79693.0,79677.0,0.18868755]
[1731268191305,0.10909894,79693.0,79687.0,0.18868755]
[1731268191538,0.1,79693.0,79677.0,0.20755631]
[1731268191746,0.125505,79678.0,79677.0,0.20755631]
[1731268191963,0.125505,79678.0,79677.0,0.18868755]
[1731268192388,0.125505,79678.0,79677.0,0.12594221]
[1731268192602,0.1255,79681.0,79677.0,0.12594221]
[1731268192821,0.250985,79686.0,79678.0,0.12594221]
[1731268193031,0.120498,79683.0,79678.0,0.13853643]
[1731268193237,0.125493,79686.0,79679.0,0.18868755]
[1731268193446,0.00910287,79690.0,79681.0,0.005]
[1731268193666,0.250956,79695.0,79682.0,0.12594221]
[1731268193667,0.125485,79691.0,79682.0,0.12594221]
[1731268193893,0.00978563,79694.0,79682.0,0.12594221]
[1731268193894,0.00978563,79694.0,79693.0,0.125481]
[1731268194097,0.000682,79694.0,79693.0,0.12594221]
[1731268195131,0.000682,79694.0,79693.0,0.25142321]
[1731268195332,0.000682,79694.0,79693.0,0.12594221]
[1731268196795,0.000682,79694.0,79693.0,0.39082321]
[1731268197010,0.000682,79694.0,79693.0,0.47937099]
[1731268197191,0.000682,79694.0,79693.0,0.47437099]
[1731268197399,0.000682,79694.0,79693.0,0.13094221]
[1731268197702,0.000682,79694.0,79693.0,0.12594221]
[1731268198305,0.126161,79694.0,79693.0,0.12594221]
[1731268198507,0.126161,79694.0,79684.0,0.005]
[1731268198508,0.250967,79692.0,79684.0,0.005]
[1731268198707,0.250969,79691.0,79688.0,0.005]
[1731268198908,0.125486,79690.0,79689.0,0.12594221]
[1731268199179,0.125486,79690.0,79685.0,0.18868755]
[1731268199180,0.125497,79684.0,79679.0,0.005]
[1731268199393,0.000682,79694.0,79679.0,0.005]
[1731268199394,0.125494,79685.0,79680.0,0.12594221]
[1731268199558,0.000682,79694.0,79681.0,0.005]
[1731268199559,0.250963,79693.0,79681.0,0.005]
[1731268199780,0.125491,79687.0,79682.0,0.12594221]
[1731268199988,0.125494,79685.0,79683.0,0.03017578]
[1731268200193,0.000682,79694.0,79683.0,0.12594221]
[1731268200194,0.125495,79684.0,79683.0,0.12594221]
[1731268200589,0.000682,79694.0,79668.0,0.19368755]
[1731268200590,0.1,79688.0,79668.0,0.19368755]
[1731268200794,0.125505,79678.0,79677.0,0.18868755]
[1731268200999,0.125505,79678.0,79677.0,0.12594221]
[1731268201000,0.12550499,79678.0,79677.0,0.12594221]
[1731268201497,0.12550499,79678.0,79677.0,0.13903643]
[1731268201686,0.00910738,79679.0,79677.0,0.13903643]
[1731268201916,0.00910738,79679.0,79669.0,0.005839]
[1731268201917,0.125503,79679.0,79678.0,0.12594221]
[1731268202139,0.125505,79678.0,79677.0,0.12594221]
[1731268202349,0.125505,79678.0,79669.0,0.000839]
[1731268202554,0.251016,79676.0,79669.0,0.18952655]
[1731268202757,0.125515,79672.0,79670.0,0.005]
[1731268203006,0.251016,79676.0,79671.0,0.12594221]
[1731268203007,0.125511,79674.0,79671.0,0.12594221]
[1731268203227,0.251006,79680.0,79672.0,0.02027484]
[1731268203454,0.125511,79674.0,79673.0,0.14621705]
[1731268203952,0.125511,79674.0,79673.0,0.02027484]
[1731268204136,0.125511,79674.0,79658.0,0.18868755]
[1731268204137,0.023,79668.0,79658.0,0.18868755]
[1731268204351,0.45990707,79659.0,79658.0,0.18868755]
[1731268204590,0.125535,79659.0,79658.0,0.18868755]
[1731268204800,0.00912272,79667.0,79661.0,0.005]
[1731268205016,0.00912272,79659.0,79657.0,0.005]
[1731268205252,0.46869206,79670.0,79654.0,0.005]
[1731268205253,0.125538,79658.0,79654.0,0.005]
[1731268205450,0.125537,79658.0,79655.0,0.02030571]
[1731268205654,0.46869206,79670.0,79644.0,0.031]
[1731268205655,0.00912272,79662.0,79644.0,0.031]
[1731268205846,0.125557,79645.0,79644.0,0.026]
[1731268206090,0.125557,79645.0,79644.0,0.04631547]
[1731268206254,0.125557,79645.0,79644.0,0.026]
[1731268207225,0.125574,79634.0,79633.0,0.00584]
[1731268207424,0.125574,79634.0,79633.0,0.02114645]
[1731268207655,0.125595,79621.0,79620.0,0.01]
[1731268207859,0.125598,79619.0,79616.0,0.005]
[1731268208028,0.251192,79621.0,79601.0,0.18868755]
[1731268208029,0.125624,79602.0,79601.0,0.18868755]
[1731268208272,0.251192,79621.0,79589.0,0.00142]
[1731268208273,0.125643,79590.0,79589.0,0.00142]
[1731268208486,0.125643,79590.0,79589.0,0.02043076]
[1731268208890,0.351234,79607.0,79591.0,0.005]
[1731268209100,0.125635,79596.0,79592.0,0.13094221]
[1731268209334,0.251265,79598.0,79592.0,0.13094221]
[1731268209962,0.125635,79596.0,79592.0,0.13094221]
[1731268210193,0.1,79607.0,79592.0,0.13094221]
[1731268210194,0.33573164,79622.0,79600.0,0.005]
[1731268210395,0.251227,79609.0,79601.0,0.12594221]
[1731268210624,0.18868755,79610.0,79588.0,0.005]
[1731268210625,0.125643,79590.0,79588.0,0.005]
[1731268210831,0.125643,79590.0,79578.0,0.127082]
[1731268210832,0.120643,79590.0,79581.0,0.18868755]
[1731268211088,0.21168755,79591.0,79578.0,0.00142]
[1731268211263,0.125661,79579.0,79578.0,0.00142]
[1731268211668,0.023,79591.0,79578.0,0.00142]
[1731268211669,0.52441919,79602.0,79587.0,0.005]
[1731268211868,0.125641,79592.0,79589.0,0.01]
[1731268212095,0.251263,79598.0,79590.0,0.12594221]
[1731268212422,0.18868755,79602.0,79590.0,0.12594221]
[1731268212423,0.125642,79591.0,79590.0,0.12594221]
[1731268212625,0.25128,79593.0,79583.0,0.01]
[1731268212772,0.18868755,79602.0,79585.0,0.005]
[1731268212973,0.03633679,79640.0,79584.0,0.12594221]
[1731268212974,0.125618,79606.0,79602.0,0.005]
[1731268213336,0.25122,79612.0,79594.0,0.005]
[1731268213501,0.33573164,79617.0,79595.0,0.12594221]
[1731268213680,0.33573164,79617.0,79601.0,0.005]
[1731268213883,0.33573164,79617.0,79602.0,0.13094221]
[1731268213884,0.251204,79617.0,79602.0,0.13094221]
[1731268214085,0.25118,79624.0,79603.0,0.125623]
[1731268214314,0.251202,79617.0,79604.0,0.12594221]
[1731268214535,0.251191,79621.0,79613.0,0.005]
[1731268214713,0.251196,79619.0,79613.0,0.005]
[1731268214924,0.12562,79605.0,79604.0,0.12594221]
[1731268215157,0.33573164,79622.0,79606.0,0.005]
[1731268215365,0.125617,79607.0,79606.0,0.005]
[1731268215713,0.18868755,79621.0,79606.0,0.005]
[1731268215938,0.18868755,79630.0,79613.0,0.01]
[1731268216145,0.18868755,79630.0,79627.0,0.125584]
[1731268216349,0.18868755,79630.0,79629.0,0.125582]
[1731268216578,0.18868755,79639.0,79630.0,0.251161]
[1731268216726,0.18868755,79639.0,79627.0,0.005]
[1731268216949,0.125583,79628.0,79627.0,0.005]
[1731268217156,0.125583,79628.0,79612.0,0.251218]
[1731268217157,0.251182,79624.0,79616.0,0.005]
[1731268217500,0.251182,79624.0,79607.0,0.43991955]
[1731268217501,0.125615,79608.0,79607.0,0.18868755]
[1731268217931,0.18868755,79609.0,79593.0,0.005]
[1731268218149,0.12564,79592.0,79591.0,0.18868755]
[1731268218536,0.125642,79591.0,79590.0,0.18868755]
[1731268218773,0.33573164,79600.0,79583.0,0.005]
[1731268218774,0.1,79598.0,79583.0,0.005]
[1731268219124,0.251268,79596.0,79584.0,0.18868755]
[1731268219306,0.125651,79585.0,79584.0,0.13094221]
[1731268219512,0.125642,79591.0,79584.0,0.13094221]
[1731268219718,0.12563,79599.0,79596.0,0.005]
[1731268219926,0.31431955,79597.0,79596.0,0.13094221]
[1731268220130,0.33573164,79610.0,79599.0,0.005]
[1731268220370,0.18868755,79601.0,79600.0,0.12594221]
[1731268220695,0.18868755,79609.0,79592.0,0.01]
[1731268220696,0.33573164,79609.0,79592.0,0.01]
[1731268220902,0.125629,79599.0,79598.0,0.18868755]
[1731268221114,0.33573164,79619.0,79600.0,0.005]
[1731268221314,0.125624,79603.0,79600.0,0.005]
[1731268221544,0.125626,79602.0,79600.0,0.005]
[1731268221758,0.251199,79618.0,79604.0,0.005]
[1731268221996,0.12562,79605.0,79604.0,0.005]
[1731268222259,0.52441919,79621.0,79604.0,0.01]
[1731268222485,0.12562,79605.0,79604.0,0.01]
[1731268222676,0.12562,79605.0,79604.0,0.005]
[1731268222883,0.12562,79605.0,79587.0,0.251296]
[1731268222884,0.251237,79606.0,79592.0,0.005]
[1731268223091,0.18868755,79607.0,79589.0,0.18868755]
[1731268223092,0.125643,79590.0,79589.0,0.18868755]
[1731268223305,0.125643,79590.0,79589.0,0.32462976]
[1731268223465,0.251277,79594.0,79589.0,0.005]
[1731268223633,0.23364755,79609.0,79597.0,0.005]
[1731268223842,0.18868755,79601.0,79598.0,0.005]
[1731268224042,0.125616,79608.0,79604.0,0.005]
[1731268224392,0.04496,79609.0,79608.0,0.01]
[1731268224844,0.170573,79609.0,79608.0,0.005]
[1731268225024,0.04496,79609.0,79608.0,0.01]
[1731268225800,0.170573,79609.0,79608.0,0.01]
[1731268225987,0.04496,79609.0,79608.0,0.01]
[1731268226205,0.04496,79609.0,79608.0,0.13594221]
[1731268226409,0.04496,79609.0,79608.0,0.26655721]
[1731268227658,0.33573164,79647.0,79608.0,0.26655721]
[1731268227659,0.18868755,79645.0,79644.0,0.140558]
[1731268227883,0.18868755,79645.0,79644.0,0.1546138]
[1731268228093,0.00014872,79660.0,79652.0,0.135546]
[1731268228336,0.00014872,79660.0,79652.0,0.140546]
[1731268228552,0.00014872,79660.0,79659.0,0.140535]
[1731268228811,0.00014872,79660.0,79659.0,0.30563861]
[1731268229425,0.00014872,79660.0,79659.0,0.18010361]
[1731268229629,0.00014872,79660.0,79659.0,0.30814924]
[1731268229893,0.00014872,79660.0,79659.0,0.30563861]
[1731268230180,0.00014872,79660.0,79659.0,0.33081512]
[1731268230415,0.00014872,79660.0,79659.0,0.41721512]
[1731268230636,0.18868755,79670.0,79669.0,0.140519]
[1731268230830,0.18868755,79670.0,79669.0,0.32579452]
[1731268231075,0.18868755,79678.0,79677.0,0.01]
[1731268231262,0.18868755,79678.0,79677.0,0.14094221]
[1731268231399,0.125502,79680.0,79677.0,0.14094221]
[1731268231610,0.1255,79681.0,79680.0,0.01]
[1731268231815,0.00168,79684.0,79683.0,0.01]
[1731268232066,0.00168,79684.0,79683.0,0.26643921]
[1731268232268,0.00168,79684.0,79683.0,0.13094221]
[1731268232428,0.00168,79684.0,79683.0,0.13594221]
[1731268232993,0.127175,79684.0,79683.0,0.13594221]
[1731268233222,0.125497,79683.0,79682.0,0.01]
[1731268233416,0.00168,79684.0,79677.0,0.005]
[1731268233417,0.250997,79682.0,79677.0,0.005]
[1731268233639,0.00097514,79683.0,79677.0,0.01]
[1731268233822,0.00223973,79681.0,79679.0,0.005]
[1731268234030,0.125499,79682.0,79677.0,0.01]
[1731268234031,0.251005,79680.0,79677.0,0.01]
[1731268234230,0.125505,79678.0,79677.0,0.01]
[1731268234773,0.1277473,79678.0,79677.0,0.005]
[1731268234942,0.00208214,79678.0,79677.0,0.01]
[1731268235142,0.12758714,79678.0,79677.0,0.01]
[1731268235350,0.125505,79678.0,79677.0,0.01]
[1731268235581,0.00168,79684.0,79679.0,0.005]
[1731268235784,0.125501,79681.0,79679.0,0.005]
[1731268235930,0.125504,79679.0,79678.0,0.005]
[1731268236147,0.250997,79682.0,79679.0,0.005]
[1731268236432,0.00168,79684.0,79679.0,0.005]
[1731268236610,0.00168,79684.0,79675.0,0.005]
[1731268236816,0.125508,79676.0,79675.0,0.12594221]
[1731268237137,0.00168,79684.0,79677.0,0.005]
[1731268237299,0.125513,79673.0,79672.0,0.01]
[1731268237553,0.125505,79679.0,79672.0,0.01]
[1731268237782,0.00168,79684.0,79683.0,0.005]
[1731268237977,0.125488,79689.0,79683.0,0.005]
[1731268237978,0.11585555,79692.0,79684.0,0.005]
[1731268238182,0.000682,79694.0,79693.0,0.005]
[1731268238419,0.000682,79694.0,79693.0,0.13094221]
[1731268238619,0.43961955,79703.0,79693.0,0.13094221]
[1731268238620,0.11484355,79703.0,79694.0,0.005]
[1731268238824,0.000712,79708.0,79707.0,0.130459]
[1731268239031,0.000712,79708.0,79707.0,0.26640121]
[1731268239236,0.000712,79708.0,79707.0,0.28650156]
[1731268239432,0.24389555,79726.0,79718.0,0.005]
[1731268239660,0.125431,79725.0,79718.0,0.13044]
[1731268239875,0.125431,79725.0,79719.0,0.0391335]
[1731268240043,0.18868755,79729.0,79719.0,0.0391335]
[1731268240285,0.250821,79738.0,79720.0,0.12594221]
[1731268240505,0.125421,79732.0,79722.0,0.250871]
[1731268240666,0.18939855,79740.0,79729.0,0.125424]
[1731268240888,0.41343164,79752.0,79729.0,0.125424]
[1731268240889,0.250799,79745.0,79730.0,0.0381286]
[1731268241095,0.33573164,79752.0,79730.0,0.0381286]
[1731268241096,0.33573164,79752.0,79730.0,0.16407081]
[1731268241334,0.250793,79747.0,79732.0,0.125418]
[1731268241488,0.33573164,79752.0,79736.0,0.005]
[1731268241697,0.125411,79738.0,79736.0,0.005]
[1731268241933,0.125411,79738.0,79736.0,0.03494908]
[1731268242168,0.000711,79750.0,79736.0,0.03494908]
[1731268242430,0.00206179,79737.0,79736.0,0.03494908]
[1731268242660,0.125408,79740.0,79736.0,0.03494908]
[1731268242880,0.000711,79750.0,79736.0,0.03494908]
[1731268242881,0.0013522,79737.0,79736.0,0.02994908]
[1731268243080,0.125408,79740.0,79737.0,0.01603671]
[1731268243525,0.000711,79750.0,79737.0,0.02103671]
[1731268243526,0.125399,79746.0,79737.0,0.02103671]
[1731268243699,0.250786,79749.0,79737.0,0.01603671]
[1731268243700,0.12541,79738.0,79737.0,0.01603671]
[1731268243920,0.125406,79741.0,79737.0,0.005]
[1731268244135,0.250807,79743.0,79736.0,0.005]
[1731268244355,0.125406,79741.0,79737.0,0.005]
[1731268244562,0.1,79743.0,79719.0,0.005]
[1731268244705,0.125426,79728.0,79727.0,0.18868755]
[1731268245114,0.33573164,79729.0,79719.0,0.19368755]
[1731268245544,0.1,79738.0,79723.0,0.005]
[1731268245744,0.12542,79733.0,79724.0,0.01986876]
[1731268245968,0.250824,79737.0,79724.0,0.01986876]
[1731268245969,0.00361489,79737.0,79728.0,0.01]
[1731268246267,0.125409,79740.0,79735.0,0.005]
[1731268246505,0.18868755,79742.0,79735.0,0.005]
[1731268246793,0.1,79748.0,79735.0,0.01909422]
[1731268246794,0.125411,79738.0,79735.0,0.01909422]
[1731268247131,0.125413,79736.0,79735.0,0.01409422]
[1731268247299,0.33573164,79736.0,79732.0,0.005]
[1731268247503,0.250815,79740.0,79735.0,0.005]
[1731268247766,0.125401,79744.0,79735.0,0.03796298]
[1731268247980,0.350791,79748.0,79736.0,0.00558878]
[1731268248114,0.250791,79748.0,79738.0,0.12541]
[1731268248324,0.43946555,79752.0,79738.0,0.005]
[1731268248325,0.125404,79742.0,79738.0,0.005]
[1731268248546,0.00270947,79747.0,79740.0,0.18868755]
[1731268248547,0.33844111,79747.0,79740.0,0.18868755]
[1731268248748,0.33844111,79747.0,79736.0,0.00058878]
[1731268248749,0.33573164,79747.0,79736.0,0.00058878]
[1731268248968,0.125403,79743.0,79738.0,0.18868755]
[1731268249159,0.125404,79743.0,79738.0,0.18868755]
[1731268249417,0.25078,79751.0,79736.0,0.00558878]
[1731268249418,0.53986607,79757.0,79740.0,0.005]
[1731268249661,0.53986607,79757.0,79736.0,0.00558878]
[1731268249662,0.00709381,79742.0,79736.0,0.00558878]
[1731268249820,0.0027269,79742.0,79741.0,0.31409355]
[1731268249989,0.125387,79753.0,79741.0,0.125406]
[1731268250202,0.250771,79754.0,79740.0,0.005]
[1731268250406,0.00856646,79752.0,79741.0,0.005]
[1731268250634,0.00856646,79752.0,79742.0,0.18350695]
[1731268250791,0.00856646,79752.0,79742.0,0.05810395]
[1731268250996,0.125392,79750.0,79742.0,0.05810395]
[1731268251306,0.001678,79745.0,79742.0,0.06310395]
[1731268251586,0.001678,79745.0,79742.0,0.18850795]
[1731268251747,0.001678,79745.0,79743.0,0.125402]
[1731268252083,0.001678,79745.0,79742.0,0.06310395]
[1731268252084,0.001678,79745.0,79744.0,0.125401]
[1731268252200,0.18868755,79756.0,79744.0,0.125401]
[1731268252404,0.250772,79754.0,79746.0,0.125397]
[1731268252618,0.125392,79750.0,79744.0,0.06380075]
[1731268253078,0.00206719,79749.0,79747.0,0.18868755]
[1731268253306,0.1,79763.0,79748.0,0.02007536]
[1731268253555,0.125385,79755.0,79750.0,0.005]
[1731268253939,0.00480103,79754.0,79746.0,0.005]
[1731268254152,0.00480103,79754.0,79742.0,0.005]
[1731268254153,0.250775,79753.0,79747.0,0.02007448]
[1731268254375,0.250767,79756.0,79747.0,0.02007448]
[1731268254598,0.125392,79750.0,79748.0,0.02007448]
[1731268254819,0.125393,79749.0,79746.0,0.005]
[1731268255034,0.13573164,79758.0,79747.0,0.02009747]
[1731268255253,0.125391,79751.0,79748.0,0.02009747]
[1731268255467,0.125392,79750.0,79749.0,0.02009747]
[1731268255679,0.023,79762.0,79749.0,0.02009747]
[1731268255680,0.250752,79760.0,79749.0,0.02009747]
[1731268255928,0.125391,79750.0,79745.0,0.005]
[1731268256134,0.13573164,79752.0,79746.0,0.02012069]
[1731268256298,0.250769,79755.0,79747.0,0.02012069]
[1731268256299,0.18650064,79755.0,79747.0,0.02012069]
[1731268256459,0.00716079,79749.0,79748.0,0.02012069]
[1731268256662,0.26112464,79751.0,79748.0,0.02012069]
[1731268256864,0.125395,79748.0,79745.0,0.005]
[1731268257074,0.125392,79750.0,79746.0,0.02015182]
[1731268257301,0.125392,79750.0,79743.0,0.130402]
[1731268257302,0.24668649,79754.0,79745.0,0.005]
[1731268257503,0.250741,79764.0,79746.0,0.05247367]
[1731268257504,0.33729461,79753.0,79746.0,0.05247367]
[1731268257707,1.3470304,79823.0,79746.0,0.05247367]